fUSD/lending_fUSD_20251226
["ID","MTS","AMOUNT","RATE_DAILY","PERIOD"]
[399844023,1766734345703,-992.168281,0.00027397,7]
[399844024,1766734345713,-151.0,0.00027397,7]
[399844025,1766734345722,-992.168281,0.00027397,7]
[399844026,1766734345731,-151.0,0.00027397,7]
[399844027,1766734345740,-992.168281,0.00027397,7]
[399844028,1766734345750,-151.0,0.00027397,7]
[399844029,1766734345759,-992.168281,0.00027397,7]
[399844030,1766734345769,-151.0,0.00027397,7]
[399844031,1766734345779,-992.168281,0.00027397,7]
[399844032,1766734345788,-151.0,0.00027397,7]
[399844033,1766734345798,-992.168281,0.00027397,7]
[399844034,1766734345807,-151.0,0.00027397,7]
[399844035,1766734345816,-151.0,0.00027397,7]
[399844036,1766734345826,-992.168281,0.00027397,7]
[399844037,1766734345835,-151.0,0.00027397,7]
[399844038,1766734345844,-151.0,0.00027397,7]
[399844039,1766734345854,-992.168281,0.00027397,7]
[399844040,1766734345863,-151.0,0.00027397,7]
[399844041,1766734345873,-151.0,0.00027397,7]
[399844042,1766734345883,-992.168281,0.00027397,7]
[399844043,1766734345892,-151.0,0.00027397,7]
[399844044,1766734345902,-151.0,0.00027397,7]
[399844045,1766734345911,-992.168281,0.00027397,7]
[399844046,1766734345921,-151.0,0.00027397,7]
[399844047,1766734345931,-151.0,0.00027397,7]
[399844048,1766734345940,-152.607844,0.00027397,7]
[399844049,1766734345949,-992.168281,0.00027397,7]
[399844050,1766734345959,-151.0,0.00027397,7]
[399844051,1766734345969,-151.0,0.00027397,7]
[399844052,1766734345979,-155.891988,0.00027397,7]
[399844053,1766734345989,-992.168281,0.00027397,7]
[399844054,1766734345998,-195.364002,0.00027397,7]
[399844055,1766734346008,-151.0,0.00027397,7]
[399844056,1766734346018,-152.607844,0.00027397,7]
[399844057,1766734346028,-155.891988,0.00027397,7]
[399844058,1766734346036,-992.16828,0.00027397,7]
[399844059,1766734346046,-152.607844,0.00027397,7]
[399844060,1766734346056,-155.891988,0.00027397,7]
[399844061,1766734346066,-151.0,0.00027397,7]
[399844062,1766734346076,-152.607844,0.00027397,7]
[399844063,1766734346085,-155.891988,0.00027397,7]
[399844064,1766734346095,-151.0,0.00027397,7]
[399844065,1766734346105,-152.607844,0.00027397,7]
[399844066,1766734346115,-155.891988,0.00027397,7]
[399844067,1766734346124,-152.607844,0.00027397,7]
[399844068,1766734346138,-151.0,0.00027397,7]
[399844069,1766734346147,-155.891988,0.00027397,7]
[399844070,1766734346157,-155.891988,0.00027397,7]
[399844071,1766734346166,-165.870181,0.00027397,7]
[399844072,1766734346177,-152.607844,0.00027397,7]
[399844073,1766734346187,-155.891988,0.00027397,7]
[399844074,1766734346196,-152.607844,0.00027397,7]
[399844075,1766734346206,-155.891988,0.00027397,7]
[399844076,1766734346215,-152.607844,0.00027397,7]
[399844077,1766734346225,-155.891988,0.00027397,7]
[399844078,1766734346235,-152.607844,0.00027397,7]
[399844079,1766734346244,-155.891988,0.00027397,7]
[399844080,1766734346254,-152.607844,0.00027397,7]
[399844081,1766734346263,-155.891988,0.00027397,7]
[399844082,1766734346273,-152.607844,0.00027397,7]
[399844083,1766734346282,-155.891988,0.00027397,7]
[399844084,1766734346292,-152.607844,0.00027397,7]
[399844085,1766734346301,-155.891988,0.00027397,7]
[399844086,1766734346310,-152.607844,0.00027397,7]
[399844087,1766734346319,-155.891988,0.00027397,7]
[399844088,1766734346329,-152.607844,0.00027397,7]
[399844089,1766734346339,-155.891988,0.00027397,7]
[399844090,1766734346348,-151.0,0.00027397,7]
[399844091,1766734346358,-155.891988,0.00027397,7]
[399844092,1766734346367,-152.607844,0.00027397,7]
[399844093,1766734346377,-151.0,0.00027397,7]
[399844094,1766734346387,-155.891988,0.00027397,7]
[399844095,1766734346396,-152.607844,0.00027397,7]
[399844096,1766734346406,-151.0,0.00027397,7]
[399844097,1766734346416,-155.891988,0.00027397,7]
[399844098,1766734346426,-152.607844,0.00027397,7]
[399844099,1766734346436,-155.891992,0.00027397,7]
[399844100,1766734346447,-151.0,0.00027397,7]
[399844101,1766734346457,-152.607844,0.00027397,7]
[399844102,1766734346467,-151.0,0.00027397,7]
[399844103,1766734346478,-152.607835,0.00027397,7]
[399844104,1766734346488,-336.444051,0.00027397,7]
[399844105,1766734346498,-151.0,0.00027397,7]
[399844106,1766734346508,-336.444051,0.00027397,7]
[399844107,1766734346518,-151.0,0.00027397,7]
[399844108,1766734346528,-151.0,0.00027397,7]
[399844109,1766734346538,-336.444051,0.00027397,7]
[399844110,1766734346548,-151.0,0.00027397,7]
[399844111,1766734346558,-151.0,0.00027397,7]
[399844112,1766734346570,-336.444051,0.00027397,7]
[399844113,1766734346581,-151.0,0.00027397,7]
[399844114,1766734346606,-151.0,0.00027397,7]
[399844115,1766734346616,-336.444051,0.00027397,7]
[399844116,1766734346626,-336.444051,0.00027397,7]
[399844117,1766734346636,-151.0,0.00027397,7]
[399844118,1766734346646,-151.0,0.00027397,7]
[399844119,1766734346657,-336.444051,0.00027397,7]
[399844120,1766734346667,-151.0,0.00027397,7]
[399844121,1766734346678,-151.0,0.00027397,7]
[399844122,1766734346688,-336.444051,0.00027397,7]
[399844123,1766734346697,-151.0,0.00027397,7]
[399844124,1766734346707,-151.0,0.00027397,7]
[399844125,1766734346717,-336.444051,0.00027397,7]
[399844126,1766734346727,-152.53697,0.00027397,7]
[399844127,1766734346737,-151.0,0.00027397,7]
[399844128,1766734346746,-336.444051,0.00027397,7]
[399844129,1766734346756,-151.0,0.00027397,7]
[399844130,1766734346766,-336.444051,0.00027397,7]
[399844131,1766734346776,-151.0,0.00027397,7]
[399844132,1766734346787,-336.444051,0.00027397,7]
[399844133,1766734346796,-151.0,0.00027397,7]
[399844134,1766734346806,-336.444051,0.00027397,7]
[399844135,1766734346815,-151.0,0.00027397,7]
[399844136,1766734346826,-336.444051,0.00027397,7]
[399844137,1766734346836,-270.905637,0.00027397,7]
[399844138,1766734346846,-336.444051,0.00027397,7]
[399844139,1766734346855,-336.444051,0.00027397,7]
[399844140,1766734346866,-336.444051,0.00027397,7]
[399844141,1766734346876,-336.444051,0.00027397,7]
[399844142,1766734346885,-336.444051,0.00027397,7]
[399844143,1766734346896,-336.444058,0.00027397,7]
[399844144,1766734346906,-151.0,0.00027397,7]
[399844145,1766734346916,-151.0,0.00027397,7]
[399844146,1766734346926,-151.0,0.00027397,7]
[399844147,1766734346936,-151.0,0.00027397,7]
[399844148,1766734346952,-151.0,0.00027397,7]
[399844149,1766734346963,-157.604758,0.00027397,7]
[399844150,1766734346975,-151.0,0.00027397,7]
[399844151,1766734346984,-151.0,0.00027397,7]
[399844152,1766734346994,-151.0,0.00027397,7]
[399844153,1766734347004,-151.0,0.00027397,7]
[399844154,1766734347014,-151.0,0.00027397,7]
[399844155,1766734347023,-151.0,0.00027397,7]
[399844156,1766734347033,-153.935396,0.00027397,7]
[399844157,1766734347043,-151.0,0.00027397,7]
[399844158,1766734347053,-151.0,0.00027397,7]
[399844159,1766734347063,-469.695378,0.00027397,7]
[399844160,1766734347073,-151.0,0.00027397,7]
[399844161,1766734347083,-469.695378,0.00027397,7]
[399844162,1766734347094,-151.0,0.00027397,7]
[399844163,1766734347104,-151.0,0.00027397,7]
[399844164,1766734347114,-469.695378,0.00027397,7]
[399844165,1766734347124,-160.436699,0.00027397,7]
[399844166,1766734347136,-151.0,0.00027397,7]
[399844167,1766734347146,-469.695378,0.00027397,7]
[399844168,1766734347156,-151.0,0.00027397,7]
[399844169,1766734347166,-151.0,0.00027397,7]
[399844170,1766734347178,-469.695378,0.00027397,7]
[399844171,1766734347187,-151.0,0.00027397,7]
[399844172,1766734347198,-151.0,0.00027397,7]
[399844173,1766734347208,-151.0,0.00027397,7]
[399844174,1766734347219,-469.695378,0.00027397,7]
[399844175,1766734347229,-200.633542,0.00027397,7]
[399844176,1766734347239,-151.0,0.00027397,7]
[399844177,1766734347250,-469.695378,0.00027397,7]
[399844178,1766734347259,-151.0,0.00027397,7]
[399844179,1766734347270,-469.695378,0.00027397,7]
[399844180,1766734347280,-151.0,0.00027397,7]
[399844181,1766734347290,-469.695378,0.00027397,7]
[399844182,1766734347301,-211.918765,0.00027397,7]
[399844183,1766734347316,-151.0,0.00027397,7]
[399844184,1766734347326,-469.695378,0.00027397,7]
[399844185,1766734347337,-151.0,0.00027397,7]
[399844186,1766734347347,-469.695378,0.00027397,7]
[399844187,1766734347358,-211.918765,0.00027397,7]
[399844188,1766734347368,-151.0,0.00027397,7]
[399844189,1766734347379,-469.695378,0.00027397,7]
[399844190,1766734347389,-211.918765,0.00027397,7]
[399844191,1766734347399,-151.0,0.00027397,7]
[399844192,1766734347409,-469.695378,0.00027397,7]
[399844193,1766734347420,-211.918765,0.00027397,7]
[399844194,1766734347430,-151.0,0.00027397,7]
[399844195,1766734347442,-469.695378,0.00027397,7]
[399844196,1766734347452,-211.918765,0.00027397,7]
[399844197,1766734347463,-151.0,0.00027397,7]
[399844198,1766734347473,-469.695378,0.00027397,7]
[399844199,1766734347483,-404.659171,0.00027397,7]
[399844200,1766734347494,-211.918765,0.00027397,7]
[399844201,1766734347504,-151.0,0.00027397,7]
[399844202,1766734347515,-469.695378,0.00027397,7]
[399844203,1766734347525,-151.0,0.00027397,7]
[399844204,1766734347536,-404.659171,0.00027397,7]
[399844205,1766734347547,-211.918765,0.00027397,7]
[399844206,1766734347556,-469.695378,0.00027397,7]
[399844207,1766734347566,-404.659171,0.00027397,7]
[399844208,1766734347576,-163.275364,0.00027397,7]
[399844209,1766734347586,-211.918765,0.00027397,7]
[399844210,1766734347597,-469.695378,0.00027397,7]
[399844211,1766734347608,-404.659171,0.00027397,7]
[399844212,1766734347618,-211.918765,0.00027397,7]
[399844213,1766734347629,-469.695378,0.00027397,7]
[399844214,1766734347639,-404.659171,0.00027397,7]
[399844215,1766734347649,-211.918765,0.00027397,7]
[399844216,1766734347659,-469.695382,0.00027397,7]
[399844217,1766734347669,-211.918765,0.00027397,7]
[399844218,1766734347687,-404.659171,0.00027397,7]
[399844219,1766734347698,-211.918765,0.00027397,7]
[399844220,1766734347709,-404.659171,0.00027397,7]
[399844221,1766734347719,-211.918765,0.00027397,7]
[399844222,1766734347730,-404.659171,0.00027397,7]
[399844223,1766734347740,-211.918765,0.00027397,7]
[399844224,1766734347750,-404.659171,0.00027397,7]
[399844225,1766734347760,-404.659171,0.00027397,7]
[399844226,1766734347771,-211.918765,0.00027397,7]
[399844227,1766734347781,-153.149178,0.00027397,7]
[399844228,1766734347792,-404.659171,0.00027397,7]
[399844229,1766734347803,-211.918765,0.00027397,7]
[399844230,1766734347813,-404.659171,0.00027397,7]
[399844231,1766734347823,-211.918765,0.00027397,7]
[399844232,1766734347834,-404.659171,0.00027397,7]
[399844233,1766734347844,-211.918765,0.00027397,7]
[399844234,1766734347854,-360.390225,0.00027397,7]
[399844235,1766734347864,-404.659171,0.00027397,7]
[399844236,1766734347875,-211.918765,0.00027397,7]
[399844237,1766734347885,-360.390225,0.00027397,7]
[399844238,1766734347894,-404.659171,0.00027397,7]
[399844239,1766734347905,-211.918763,0.00027397,7]
[399844240,1766734347915,-360.390225,0.00027397,7]
[399844241,1766734347926,-360.390225,0.00027397,7]
[399844242,1766734347937,-404.659171,0.00027397,7]
[399844243,1766734347947,-360.390225,0.00027397,7]
[399844244,1766734347956,-404.659171,0.00027397,7]
[399844245,1766734347966,-360.390225,0.00027397,7]
[399844246,1766734347976,-404.659171,0.00027397,7]
[399844247,1766734347986,-360.390225,0.00027397,7]
[399844248,1766734347996,-404.659171,0.00027397,7]
[399844249,1766734348007,-360.390225,0.00027397,7]
[399844250,1766734348018,-404.659168,0.00027397,7]
[399844251,1766734348029,-1502.761387,0.00027397,7]
[399844252,1766734348044,-360.390225,0.00027397,7]
[399844253,1766734348055,-253.297284,0.00027397,7]
[399844254,1766734348066,-1502.761387,0.00027397,7]
[399844255,1766734348077,-360.390225,0.00027397,7]
[399844256,1766734348087,-253.297284,0.00027397,7]
[399844257,1766734348098,-1502.761387,0.00027397,7]
[399844258,1766734348109,-360.390225,0.00027397,7]
[399844259,1766734348119,-253.297284,0.00027397,7]
[399844260,1766734348130,-1090.380695,0.00027397,7]
[399844261,1766734348143,-1502.761387,0.00027397,7]
[399844262,1766734348154,-360.390225,0.00027397,7]
[399844263,1766734348164,-253.297284,0.00027397,7]
[399844264,1766734348175,-1090.380695,0.00027397,7]
[399844265,1766734348186,-1502.761387,0.00027397,7]
[399844266,1766734348196,-360.390225,0.00027397,7]
[399844267,1766734348208,-253.297284,0.00027397,7]
[399844268,1766734348218,-1090.380695,0.00027397,7]
[399844269,1766734348228,-1502.761387,0.00027397,7]
[399844270,1766734348239,-360.390225,0.00027397,7]
[399844271,1766734348249,-253.297284,0.00027397,7]
[399844272,1766734348260,-1090.380695,0.00027397,7]
[399844273,1766734348271,-1502.761387,0.00027397,7]
[399844274,1766734348282,-360.390225,0.00027397,7]
[399844275,1766734348292,-1090.380695,0.00027397,7]
[399844276,1766734348305,-360.390225,0.00027397,7]
[399844277,1766734348316,-1502.761387,0.00027397,7]
[399844278,1766734348327,-253.297284,0.00027397,7]
[399844279,1766734348337,-1090.380695,0.00027397,7]
[399844280,1766734348347,-1502.761387,0.00027397,7]
[399844281,1766734348357,-253.297284,0.00027397,7]
[399844282,1766734348368,-360.390225,0.00027397,7]
[399844283,1766734348378,-1090.380695,0.00027397,7]
[399844284,1766734348389,-1502.761387,0.00027397,7]
[399844285,1766734348399,-253.297284,0.00027397,7]
[399844286,1766734348414,-360.390225,0.00027397,7]
[399844287,1766734348424,-151.0,0.00027397,7]
[399844288,1766734348435,-1090.380695,0.00027397,7]
[399844289,1766734348445,-1502.761387,0.00027397,7]
[399844290,1766734348456,-253.297284,0.00027397,7]
[399844291,1766734348466,-360.390225,0.00027397,7]
[399844292,1766734348476,-151.0,0.00027397,7]
[399844293,1766734348486,-1090.380695,0.00027397,7]
[399844294,1766734348497,-1502.761387,0.00027397,7]
[399844295,1766734348508,-360.390226,0.00027397,7]
[399844296,1766734348517,-253.297284,0.00027397,7]
[399844297,1766734348528,-1090.380695,0.00027397,7]
[399844298,1766734348538,-151.0,0.00027397,7]
[399844299,1766734348548,-1502.761387,0.00027397,7]
[399844300,1766734348559,-253.297284,0.00027397,7]
[399844301,1766734348569,-1090.380695,0.00027397,7]
[399844302,1766734348580,-151.0,0.00027397,7]
[399844303,1766734348590,-1502.761387,0.00027397,7]
[399844304,1766734348604,-253.297284,0.00027397,7]
[399844305,1766734348614,-1090.380695,0.00027397,7]
[399844306,1766734348624,-192.979362,0.00027397,7]
[399844307,1766734348634,-1090.380695,0.00027397,7]
[399844308,1766734348645,-1502.761387,0.00027397,7]
[399844309,1766734348656,-253.297284,0.00027397,7]
[399844310,1766734348666,-1502.761387,0.00027397,7]
[399844311,1766734348677,-1090.380695,0.00027397,7]
[399844312,1766734348687,-253.297284,0.00027397,7]
[399844313,1766734348698,-1502.761387,0.00027397,7]
[399844314,1766734348709,-253.297284,0.00027397,7]
[399844315,1766734348720,-185.48686,0.00027397,7]
[399844316,1766734348730,-1090.380695,0.00027397,7]
[399844317,1766734348740,-1502.761387,0.00027397,7]
[399844318,1766734348751,-1090.380695,0.00027397,7]
[399844319,1766734348761,-185.48686,0.00027397,7]
[399844320,1766734348772,-253.297284,0.00027397,7]
[399844321,1766734348783,-151.0,0.00027397,7]
[399844322,1766734348794,-1502.761387,0.00027397,7]
[399844323,1766734348804,-185.48686,0.00027397,7]
[399844324,1766734348815,-1090.380695,0.00027397,7]
[399844325,1766734348826,-151.0,0.00027397,7]
[399844326,1766734348835,-253.297284,0.00027397,7]
[399844327,1766734348846,-1502.761384,0.00027397,7]
[399844328,1766734348856,-1090.380695,0.00027397,7]
[399844329,1766734348866,-185.48686,0.00027397,7]
[399844330,1766734348876,-151.0,0.00027397,7]
[399844331,1766734348887,-1090.380695,0.00027397,7]
[399844332,1766734348898,-185.48686,0.00027397,7]
[399844333,1766734348908,-253.297284,0.00027397,7]
[399844334,1766734348919,-151.0,0.00027397,7]
[399844335,1766734348930,-1090.380699,0.00027397,7]
[399844336,1766734348939,-185.48686,0.00027397,7]
[399844337,1766734348949,-151.0,0.00027397,7]
[399844338,1766734348959,-253.297274,0.00027397,7]
[399844339,1766734348969,-185.48686,0.00027397,7]
[399844340,1766734348979,-151.0,0.00027397,7]
[399844341,1766734349002,-185.48686,0.00027397,7]
[399844342,1766734349014,-151.0,0.00027397,7]
[399844343,1766734349025,-185.48686,0.00027397,7]
[399844344,1766734349036,-151.0,0.00027397,7]
[399844345,1766734349046,-152.526053,0.00027397,7]
[399844346,1766734349057,-185.48686,0.00027397,7]
[399844347,1766734349067,-151.0,0.00027397,7]
[399844348,1766734349078,-185.48686,0.00027397,7]
[399844349,1766734349089,-151.0,0.00027397,7]
[399844350,1766734349101,-185.48686,0.00027397,7]
[399844351,1766734349111,-151.0,0.00027397,7]
[399844352,1766734349122,-185.48686,0.00027397,7]
[399844353,1766734349133,-151.0,0.00027397,7]
[399844354,1766734349145,-185.48686,0.00027397,7]
[399844355,1766734349158,-151.0,0.00027397,7]
[399844356,1766734349168,-151.0,0.00027397,7]
[399844357,1766734349180,-185.48686,0.00027397,7]
[399844358,1766734349191,-151.0,0.00027397,7]
[399844359,1766734349202,-151.0,0.00027397,7]
[399844360,1766734349214,-185.48686,0.00027397,7]
[399844361,1766734349225,-224.771325,0.00027397,7]
[399844362,1766734349235,-197.493829,0.00027397,7]
[399844363,1766734349246,-185.48686,0.00027397,7]
[399844364,1766734349256,-151.0,0.00027397,7]
[399844365,1766734349267,-185.48686,0.00027397,7]
[399844366,1766734349278,-151.0,0.00027397,7]
[399844367,1766734349288,-185.48686,0.00027397,7]
[399844368,1766734349298,-151.0,0.00027397,7]
[399844369,1766734349309,-185.486857,0.00027397,7]
[399844370,1766734349319,-151.0,0.00027397,7]
[399844371,1766734349330,-151.0,0.00027397,7]
[399844372,1766734349345,-151.0,0.00027397,7]
[399844373,1766734349355,-151.0,0.00027397,7]
[399844374,1766734349366,-151.0,0.00027397,7]
[399844375,1766734349376,-151.0,0.00027397,7]
[399844376,1766734349386,-151.0,0.00027397,7]
[399844377,1766734349397,-2574.330896,0.00027397,7]
[399844378,1766734349407,-2574.330896,0.00027397,7]
[399844379,1766734349418,-2574.330896,0.00027397,7]
[399844380,1766734349428,-2574.330896,0.00027397,7]
[399844381,1766734349440,-2574.330896,0.00027397,7]
[399844382,1766734349451,-294.93384,0.00027397,7]
[399844383,1766734349461,-2574.330896,0.00027397,7]
[399844384,1766734349471,-2574.330896,0.00027397,7]
[399844385,1766734349482,-2574.330896,0.00027397,7]
[399844386,1766734349492,-2574.330896,0.00027397,7]
[399844387,1766734349503,-191.234946,0.00027397,7]
[399844388,1766734349514,-2574.330896,0.00027397,7]
[399844389,1766734349525,-191.234946,0.00027397,7]
[399844390,1766734349535,-191.234946,0.00027397,7]
[399844391,1766734349546,-2574.330896,0.00027397,7]
[399844392,1766734349557,-191.234946,0.00027397,7]
[399844393,1766734349567,-2574.330896,0.00027397,7]
[399844394,1766734349578,-191.234946,0.00027397,7]
[399844395,1766734349588,-191.234946,0.00027397,7]
[399844396,1766734349599,-2574.330896,0.00027397,7]
[399844397,1766734349610,-191.234946,0.00027397,7]
[399844398,1766734349620,-2574.330896,0.00027397,7]
[399844399,1766734349631,-191.234946,0.00027397,7]
[399844400,1766734349642,-2574.330896,0.00027397,7]
[399844401,1766734349654,-191.234946,0.00027397,7]
[399844402,1766734349665,-2574.330896,0.00027397,7]
[399844403,1766734349675,-191.234946,0.00027397,7]
[399844404,1766734349687,-2574.330896,0.00027397,7]
[399844405,1766734349703,-191.234946,0.00027397,7]
[399844406,1766734349714,-2574.330896,0.00027397,7]
[399844407,1766734349725,-300.0,0.00027397,5]
[399844408,1766734349735,-250.4460175,0.00027397,5]
[399844409,1766734349747,-560.77947833,0.00027464,17]
[399844410,1766734349757,-200.10967967,0.000275,2]
[399844411,1766734349767,-546.65413557,0.000275,2]
[399844412,1766734349778,-560.77947833,0.00027627,25]
[399844413,1766734349789,-15435.28,0.00027671,2]
[399844414,1766734349799,-165.92,0.00027754,2]
[399844415,1766734349810,-178.68773477,0.00027763,30]
[399844416,1766734349820,-170.85337416,0.00027763,30]
[399844417,1766734349831,-560.77947833,0.00027791,32]
[399844418,1766734349842,-400.0,0.00027791,30]
[399844419,1766734349852,-443.31651645,0.00027791,30]
[399844420,1766734349864,-560.77947833,0.00027954,40]
[399844421,1766734349875,-70961.4371942,0.00028,2]
[399844422,1766734349885,-50600.92691763,0.00028,2]
[399844423,1766734349895,-6139.5862849,0.00028,2]
[399844424,1766734349907,-500.0,0.00028027,30]
[399844425,1766734349918,-500.0,0.00028027,30]
[399844426,1766734349928,-502.47555546,0.00028027,30]
[399844427,1766734349940,-1000.0,0.00028117,2]
[399844428,1766734349951,-560.77947833,0.00028117,48]
[399844429,1766734349961,-600.0,0.00028219,5]
[399844430,1766734349972,-560.77947833,0.0002828,56]
[399844431,1766734349982,-166.66666666,0.00028391,30]
[399844432,1766734349993,-560.77947833,0.00028444,63]
[399844433,1766734350003,-447.3913417,0.0002847,2]
[399844434,1766734350014,-300.72,0.000285,7]
[399844435,1766734350024,-2000.0,0.000286,2]
[399844436,1766734350035,-560.77947833,0.00028607,71]
[399844437,1766734350046,-151.0,0.00028766,2]
[399844438,1766734350056,-3000.0,0.00028768,14]
[399844439,1766734350071,-560.77947833,0.0002877,79]
[399844440,1766734350082,-209.0,0.0002882,30]
[399844441,1766734350092,-560.77947833,0.00028933,86]
[399844442,1766734350102,-5009.07324819,0.00029,2]
[399844443,1766734350113,-1263.0,0.00029,2]
[399844444,1766734350123,-912.0,0.00029,2]
[399844445,1766734350141,-1198.0,0.00029,2]
[399844446,1766734350152,-1327.0,0.00029,2]
[399844447,1766734350163,-2430.0,0.00029,2]
[399844448,1766734350174,-550.0,0.00029,2]
[399844449,1766734350185,-3459.0,0.00029,2]
[399844450,1766734350195,-900.0,0.00029041,5]
[399844451,1766734350206,-1000.0,0.00029063,2]
[399844452,1766734350216,-560.77947833,0.00029097,94]
[399844453,1766734350226,-300.0,0.00029134,2]
[399844454,1766734350421,-1000.0,0.00029157,2]
[399844455,1766734350432,-302.53323335,0.00029171,2]
[399844456,1766734350442,-560.77947833,0.0002926,102]
[399844457,1766734350452,-300.0,0.00029287,2]
[399844458,1766734350462,-2000.0,0.00029348,7]
[399844459,1766734350472,-1004.91129947,0.000294,5]
[399844460,1766734350482,-1144.02399831,0.000294,5]
[399844461,1766734350492,-1001.57730531,0.000294,5]
[399844462,1766734350503,-1106.80564604,0.000294,5]
[399844463,1766734350513,-1004.27443796,0.000294,5]
[399844464,1766734350523,-1146.83491655,0.000294,5]
[399844465,1766734350533,-1023.86679271,0.000294,5]
[399844466,1766734350542,-1123.19043625,0.000294,5]
[399844467,1766734350552,-1062.06521256,0.000294,5]
[399844468,1766734350562,-1070.44903035,0.000294,5]
[399844469,1766734350578,-1015.5038894,0.000294,5]
[399844470,1766734350588,-1008.23559231,0.000294,5]
[399844471,1766734350598,-1030.15422449,0.000294,5]
[399844472,1766734350608,-1093.70015182,0.000294,5]
[399844473,1766734350619,-1082.67474206,0.000294,5]
[399844474,1766734350628,-1119.09445741,0.000294,5]
[399844475,1766734350639,-1117.33595279,0.000294,5]
[399844476,1766734350649,-1007.51646469,0.000294,5]
[399844477,1766734350660,-1115.66096461,0.000294,5]
[399844478,1766734350670,-1067.82010477,0.000294,5]
[399844479,1766734350680,-1045.07549426,0.000294,5]
[399844480,1766734350691,-1134.3926418,0.000294,5]
[399844481,1766734350701,-1116.91940994,0.000294,5]
[399844482,1766734350711,-1134.01356513,0.000294,5]
[399844483,1766734350720,-1196.4859925,0.000294,5]
[399844484,1766734350730,-560.77947833,0.00029423,110]
[399844485,1766734350741,-162.55799377,0.00029519,2]
[399844486,1766734350751,-150.0,0.00029533,2]
[399844487,1766734350761,-1000.0,0.00029549,2]
[399844488,1766734350772,-150.0,0.00029644,2]
[399844489,1766734350782,-3221.6419645,0.00029789,29]
[399844490,1766734350792,-463.94482134,0.00029839,2]
[399844491,1766734350803,-212.42,0.00029841,30]
[399844492,1766734350813,-1200.0,0.00029863,5]
[399844493,1766734350824,-1000.0,0.00029985,2]
[399844494,1766734350834,-560.52292834,0.0003,30]
[399844495,1766734350845,-1125219.04348382,0.0003,3]
[399844496,1766734350855,-1000.0,0.0003,3]
[399844497,1766734350865,-1000.0,0.0003,7]
[399844498,1766734350875,-300.72,0.0003,7]
[399844499,1766734350886,-250.0,0.0003,30]
[399844500,1766734350897,-263.98536343,0.0003,30]
[399844501,1766734350908,-615.75631853,0.0003,5]
[399844502,1766734350919,-293.2,0.0003,2]
[399844503,1766734350930,-350.0,0.0003,30]
[399844504,1766734350940,-153.51,0.0003,10]
[399844505,1766734350950,-590.85173028,0.0003,30]
[399844506,1766734350960,-2000.0,0.0003,14]
[399844507,1766734350970,-5000.0,0.0003,3]
[399844508,1766734350980,-2671.466588,0.0003,2]
[399844509,1766734350990,-448.74544435,0.0003,14]
[399844510,1766734351000,-300.0,0.00030016,2]
[399844511,1766734351010,-200.0,0.000301,2]
[399844512,1766734351021,-190.12087806,0.0003013,30]
[399844513,1766734351032,-300.0,0.0003013,30]
[399844514,1766734351042,-151.0,0.00030135,2]
[399844515,1766734351052,-200.0,0.00030136,2]
[399844516,1766734351062,-1000.0,0.00030136,30]
[399844517,1766734351072,-684.07,0.00030137,2]
[399844518,1766734351082,-200.0,0.00030137,2]
[399844519,1766734351093,-600.0,0.00030137,120]
[399844520,1766734351103,-600.0,0.00030137,120]
[399844521,1766734351114,-600.0,0.00030137,120]
[399844522,1766734351124,-600.0,0.00030137,120]